bitfinex/quotes_SOLUSD_20240717
["timestamp","ask_amount","ask_price","bid_price","bid_amount"]
[1721254803065,6.4101,156.01,155.98,15.7725]
[1721254803445,6.4094,156.02,155.98,15.7725]
[1721254803762,20.0,156.01,155.98,15.7725]
[1721254803958,6.4089,156.04,155.98,15.7725]
[1721254804168,20.0,156.03,155.99,16.3659]
[1721254804463,26.4081,156.06,156.01,6.4097]
[1721254804661,26.4081,156.06,155.98,15.7725]
[1721254804662,6.4089,156.04,155.98,15.7725]
[1721254804965,20.0,156.03,156.01,6.4095]
[1721254805264,6.4081,156.06,156.02,1.28173332]
[1721254805466,20.0,156.05,156.02,7.69113332]
[1721254806058,20.0,156.1,156.02,7.69113332]
[1721254806350,21.5469,156.13,156.04,16.0213]
[1721254806649,6.4078,156.06,156.01,22.434]
[1721254807243,6.4078,156.06,156.02,1.28161719]
[1721254807464,6.4074,156.07,156.02,6.4094]
[1721254807668,6.4081,156.06,156.01,16.0242]
[1721254807856,16.015,156.11,156.01,16.0242]
[1721254808044,6.4065,156.09,156.04,6.4084]
[1721254808246,6.407,156.08,156.01,16.0242]
[1721254808441,6.4076,156.07,156.01,22.4337]
[1721254808770,20.0,156.06,156.02,0.17]
[1721254808970,20.0,156.06,156.03,6.4089]
[1721254809158,54.71462694,156.16,156.04,16.0205]
[1721254809467,6.4061,156.1,156.05,17.87821309]
[1721254809771,48.0292,156.16,156.05,17.87821309]
[1721254809772,6.4058,156.11,156.06,22.4264]
[1721254810067,6.4061,156.1,156.07,1.28126469]
[1721254810469,20.0,156.09,156.07,1.28126469]
[1721254810962,16.0097,156.16,156.08,7.8356984]
[1721254811144,16.0097,156.16,156.08,14.2424984]
[1721254811350,6.4049,156.13,156.08,14.2424984]
[1721254811547,16.0064,156.19,156.09,0.34]
[1721254811782,6.4039,156.16,156.12,15.8679]
[1721254812774,6.4027,156.19,156.14,6.4043]
[1721254812953,6.4027,156.19,156.15,1.28060546]
[1721254813470,6.4021,156.2,156.15,6.404]
[1721254813674,6.2991,156.25,156.16,51.537]
[1721254813675,6.4003,156.25,156.16,51.537]
[1721254813894,6.4003,156.25,156.2,6.4019]
[1721254814171,6.3999,156.26,156.21,7.68129722]
[1721254814373,6.3991,156.28,156.22,7.68119735]
[1721254814551,15.9958,156.3,156.22,1.28009735]
[1721254814552,6.3996,156.26,156.22,1.28009735]
[1721254814755,6.4005,156.24,156.19,6.402]
[1721254814957,15.9958,156.3,156.18,6.4028]
[1721254815254,31.9933,156.29,156.16,6.197]
[1721254815455,28.31781777,156.31,156.16,6.197]
[1721254815662,6.4,156.25,156.2,6.402]
[1721254815861,6.3995,156.26,156.21,7.68156665]
[1721254816255,6.3995,156.26,156.21,6.4015]
[1721254816450,20.0,156.25,156.21,6.4015]
[1721254817062,20.0,156.25,156.2,15.454]
[1721254817260,20.0,156.29,156.2,15.454]
[1721254818077,6.4004,156.24,156.2,15.454]
[1721254818279,6.4,156.25,156.2,21.856]
[1721254818455,20.0,156.23,156.21,6.4015]
[1721254818863,20.0,156.23,156.2,21.856]
[1721254819077,20.0,156.24,156.21,6.4015]
[1721254819383,20.0,156.25,156.21,6.4015]
[1721254819876,26.4,156.25,156.2,21.856]
[1721254820083,20.0,156.25,156.2,15.454]
[1721254820398,15.9979,156.27,156.15,31.8622]
[1721254820679,51.993,156.29,156.15,38.2662]
[1721254820680,6.4021,156.2,156.15,38.2662]
[1721254820999,6.4024,156.19,156.15,15.8522]
[1721254821305,16.4109,156.27,156.11,16.0068]
[1721254821306,6.4041,156.15,156.11,16.0068]
[1721254821588,6.4036,156.17,156.12,1.28075652]
[1721254821759,20.0,156.18,156.14,6.4044]
[1721254821955,20.0,156.18,156.15,1.28057752]
[1721254822495,20.0,156.18,156.16,16.0088]
[1721254822787,6.4016,156.21,156.17,1.28051194]
[1721254822993,6.4016,156.21,156.18,1.2804362]
[1721254823202,20.0,156.26,156.18,1.2804362]
[1721254823565,6.4004,156.24,156.19,6.7424]
[1721254823858,20.0,156.23,156.19,0.17]
[1721254824058,20.0,156.23,156.17,6.4458]
[1721254824365,6.4012,156.22,156.17,12.8487]
[1721254824563,20.0,156.21,156.18,0.34]
[1721254825073,20.0,156.21,156.18,6.7428]
[1721254825276,20.0,156.22,156.18,6.7428]
[1721254825476,26.4013,156.22,156.18,0.34]
[1721254825680,6.4016,156.21,156.18,0.17]
[1721254825881,6.4016,156.21,156.17,6.4458]
[1721254826200,26.4012,156.22,156.17,12.8489]
[1721254826698,20.0,156.22,156.17,7.72608937]
[1721254826901,16.0019,156.24,156.13,29.0445]
[1721254827194,6.4033,156.17,156.13,6.6279]
[1721254827490,6.4036,156.17,156.13,6.6279]
[1721254828002,6.4026,156.19,156.13,13.0328]
[1721254828297,20.0,156.18,156.14,6.4045]
[1721254828473,26.4028,156.18,156.13,13.0327]
[1721254828904,20.0,156.18,156.11,38.4256]
[1721254829098,20.0,156.18,156.12,6.4053]
[1721254829312,20.0,156.2,156.11,32.0202]
[1721254829671,20.0,156.2,156.11,16.0068]
[1721254829993,16.0068,156.19,156.09,6.1601]
[1721254830175,20.0,156.18,156.09,12.5664]
[1721254830672,20.0,156.18,156.09,6.1601]
[1721254831193,6.4057,156.11,156.07,15.7419]
[1721254831409,26.4061,156.1,156.05,22.3233]
[1721254831693,6.4065,156.09,156.05,16.0202]
[1721254831866,26.4071,156.08,156.03,16.4071]
[1721254832066,6.4076,156.07,156.03,16.4071]
[1721254832266,20.0,156.06,156.03,22.816]
[1721254832487,20.0,156.06,156.04,7.68994387]
[1721254832688,20.0,156.06,156.04,6.4084]
[1721254832993,20.0,156.08,156.04,6.4084]
[1721254833166,20.0,156.08,156.04,6.4085]
[1721254833568,20.0,156.12,156.03,22.8161]
[1721254833788,20.0,156.12,156.03,16.4071]
[1721254834217,6.4064,156.1,156.03,16.4071]
[1721254834375,20.0,156.09,156.04,1.2815034]
[1721254834991,20.0,156.12,156.05,1.28142742]
[1721254835367,6.4073,156.08,156.03,22.8161]
[1721254835568,20.0,156.07,156.03,22.8161]
[1721254836304,20.0,156.12,156.03,22.8161]
[1721254836596,6.4072,156.08,156.03,22.8161]
[1721254836791,20.0,156.07,156.03,22.8161]
[1721254837000,20.0,156.07,156.04,6.4085]
[1721254837179,20.0,156.07,156.04,7.68995415]
[1721254837375,32.0394916,156.24,156.04,7.68995415]
[1721254837376,20.0,156.08,156.05,1.28145415]
[1721254837705,6.4074,156.07,156.03,16.4071]
[1721254837992,6.4079,156.06,156.02,0.17]
[1721254838195,6.4082,156.05,156.02,0.17]
[1721254838695,6.4077,156.07,156.02,0.17]
[1721254838901,20.0,156.06,156.01,28.7372]
[1721254839577,20.0,156.06,156.02,6.4093]
[1721254840500,20.0,156.06,156.03,16.0215]
[1721254840798,20.0,156.1,156.07,6.4073]
[1721254841105,20.0,156.1,156.04,45.0]
[1721254841106,6.4054,156.12,156.08,7.68808684]
[1721254841276,6.4058,156.11,156.06,1.28120697]
[1721254841484,6.4069,156.08,156.03,6.5789]
[1721254841691,6.4069,156.08,156.04,7.6899299]
[1721254841903,6.4069,156.08,156.03,6.5789]
[1721254842417,6.4081,156.06,156.02,16.0231]
[1721254842819,6.4081,156.06,156.02,22.4325]
[1721254843601,26.4074,156.07,156.02,22.4325]
[1721254845517,6.4084,156.05,156.01,6.3031]
[1721254845814,20.0,156.04,156.01,6.4097]
[1721254845998,20.0,156.04,156.02,6.4094]
[1721254846205,26.4087,156.04,156.0,16.0248]
[1721254846403,26.4087,156.04,156.0,22.435]
[1721254846823,20.0,156.04,156.0,22.435]
[1721254847388,20.0,156.04,156.01,6.4097]
[1721254847699,26.4078,156.06,156.01,6.4097]
[1721254848127,26.4078,156.06,156.02,7.69106854]
[1721254848291,20.0,156.06,156.03,6.4088]
[1721254848628,15.3249,156.12,156.04,1.28158455]
[1721254848629,6.407,156.08,156.04,1.28158455]
[1721254848786,20.0,156.07,156.04,1.28158455]
[1721254849433,20.0,156.07,156.05,1.28159327]
[1721254849582,20.0,156.08,156.05,6.4078]
[1721254849779,20.0,156.11,156.04,16.0208]
[1721254850286,6.407,156.08,156.05,1.28145692]
[1721254850497,20.0,156.07,156.05,1.28145692]
[1721254851095,6.4076,156.07,156.05,1.28145692]
[1721254851408,26.4079,156.06,156.01,6.4095]
[1721254851584,6.4079,156.06,156.01,6.5795]
[1721254851785,20.0,156.05,156.01,6.5795]
[1721254851986,20.0,156.05,156.02,7.69091998]
[1721254852506,20.0,156.06,156.03,6.4086]
[1721254852800,20.0,156.1,156.03,6.4086]
[1721254853110,20.0,156.1,156.02,16.0226]
[1721254853284,16.0185,156.07,156.01,0.17]
[1721254853485,6.4087,156.04,155.99,37.8047]
[1721254853799,26.4091,156.03,155.99,31.3941]
[1721254854182,26.409,156.03,155.99,37.8046]
[1721254854380,26.409,156.03,155.99,31.3941]
[1721254854605,26.409,156.03,156.0,1.28190446]
[1721254854809,26.409,156.03,155.99,37.8045]
[1721254855013,26.409,156.03,156.0,1.28189279]
[1721254855203,26.409,156.03,155.99,37.8045]
[1721254855403,20.0,156.03,155.99,37.8045]
[1721254855707,20.0,156.03,156.0,1.28189155]
[1721254855888,20.0,156.03,155.99,37.8045]
[1721254856289,26.409,156.03,155.99,31.3941]
[1721254856490,6.4094,156.02,155.99,15.368]
[1721254856807,26.409,156.03,155.99,15.368]
[1721254857103,6.4095,156.02,155.97,6.059]
[1721254857796,26.4091,156.03,155.97,6.059]
[1721254858389,26.4091,156.03,155.98,6.4109]
[1721254858895,26.4091,156.03,155.98,7.6928828]
[1721254859105,20.0,156.03,156.02,6.4094]
[1721254859503,6.4069,156.08,156.03,6.4089]
[1721254859830,16.0143,156.11,156.02,6.4093]
[1721254860004,16.0143,156.11,156.02,7.69092752]
[1721254860199,6.4079,156.06,156.01,22.4342]
[1721254860523,6.4083,156.05,156.01,22.4342]
[1721254860708,6.4088,156.04,155.98,16.0275]
[1721254860909,6.4083,156.05,156.0,6.4102]
[1721254861221,6.4091,156.03,155.98,22.4384]
[1721254861522,20.0,156.02,155.95,15.0386]
[1721254861699,6.4115,155.97,155.93,6.4843]
[1721254861902,6.4111,155.98,155.93,12.8973]
[1721254862322,20.0,155.97,155.93,12.8973]
[1721254862617,20.0,155.97,155.94,6.4126]
[1721254862824,20.0,155.98,155.94,6.4126]
[1721254863516,20.0,155.98,155.93,6.4843]
[1721254863721,20.0,156.02,155.95,6.4122]
[1721254863917,20.0,156.03,155.96,1.28230245]
[1721254864122,6.409,156.03,155.98,6.411]
[1721254864320,20.0,156.05,155.93,35.7043]
[1721254864321,20.0,156.02,155.93,6.4843]
[1721254864622,6.4093,156.03,155.97,6.4114]
[1721254864921,6.409,156.04,155.99,6.4106]
[1721254865119,6.409,156.04,155.99,1.28189123]
[1721254865316,6.409,156.03,155.99,6.4105]
[1721254865494,6.4087,156.04,156.0,6.4102]
[1721254865700,6.4078,156.06,156.01,7.69155941]
[1721254865899,16.0165,156.09,156.01,7.69155941]
[1721254866326,6.4078,156.06,156.02,1.28177434]
[1721254866895,6.4065,156.1,156.02,16.0225]
[1721254867207,6.4065,156.1,156.05,6.4081]
[1721254867401,253.5,156.13,156.02,16.0225]
[1721254867402,6.4066,156.09,156.04,6.4085]
[1721254867619,269.5129,156.13,156.02,16.0225]
[1721254867798,16.0129,156.13,156.02,16.0225]
[1721254867998,6.1426,156.16,156.01,0.17]
[1721254867999,6.4053,156.12,156.08,6.4068]
[1721254868208,22.1521,156.16,156.08,6.4068]
[1721254868209,28.84219626,156.16,156.08,6.4068]
[1721254868407,275.6479,156.2,156.1,6.406]
[1721254868604,275.6479,156.2,156.11,1.28102982]
[1721254868805,6.4045,156.14,156.09,22.4227]
[1721254869015,6.4045,156.14,156.1,1.28103849]
[1721254869216,6.4041,156.15,156.11,1.28102034]
[1721254869421,6.4032,156.18,156.12,6.4053]
[1721254869606,6.4032,156.18,156.13,1.28075941]
[1721254869801,32.4936,156.23,156.13,1.28075941]
[1721254870006,6.4033,156.17,156.13,1.28075941]
[1721254870227,6.4038,156.16,156.13,1.28075941]
[1721254870520,6.4033,156.17,156.12,6.4052]
[1721254870824,6.4028,156.19,156.13,6.4048]
[1721254871022,6.403,156.18,156.13,6.4048]
[1721254871201,20.0,156.17,156.14,1.28070779]
[1721254871529,16.0022,156.23,156.15,7.68460779]
[1721254872040,13.19442691,156.25,156.16,6.4036]
[1721254872206,15.9992,156.26,156.17,7.68350693]
[1721254872409,6.4008,156.23,156.18,7.68299379]
[1721254872713,15.9992,156.26,156.17,1.28025682]
[1721254872921,6.4018,156.21,156.19,1.28025682]
[1721254873122,6.4012,156.22,156.17,7.68351463]
[1721254873304,6.4012,156.22,156.18,1.28029819]
[1721254873709,6.4012,156.22,156.18,7.68309819]
[1721254873911,26.4017,156.21,156.16,16.0091]
[1721254874103,26.4017,156.21,156.17,45.0]
[1721254874304,20.0,156.21,156.17,45.0]
[1721254874702,20.0,156.21,156.18,6.4027]
[1721254874902,20.0,156.22,156.18,7.68298355]
[1721254875311,20.0,156.22,156.2,6.4019]
[1721254875514,20.0,156.22,156.21,7.68179347]
[1721254875711,20.0,156.22,156.21,1.28019347]
[1721254876729,20.0,156.22,156.21,51.5716]
[1721254876908,20.0,156.22,156.21,45.17]
[1721254877108,20.0,156.22,156.2,12.9558]
[1721254877109,20.0,156.22,156.2,6.5539]
[1721254877322,20.0,156.23,156.2,6.5539]
[1721254878353,6.4012,156.22,156.2,7.83401293]
[1721254878514,6.4004,156.24,156.19,6.4023]
[1721254878713,26.4009,156.23,156.18,22.4092]
[1721254878911,6.4009,156.23,156.18,22.4092]
[1721254879108,6.4,156.25,156.2,6.402]
[1721254879321,20.0,156.24,156.21,1.28005896]
[1721254879514,26.4005,156.24,156.2,17.28438422]
[1721254879719,20.0,156.24,156.2,17.2843842]
[1721254879926,20.0,156.28,156.2,16.0043]
[1721254880120,6.4005,156.24,156.2,16.0043]
[1721254880324,20.0,156.23,156.2,16.0043]
[1721254881224,20.0,156.23,156.2,17.2844257]
[1721254881427,20.0,156.23,156.22,6.4012]
[1721254881848,15.9955,156.3,156.2,16.0043]
[1721254882416,6.4,156.25,156.2,22.4063]
[1721254882719,20.0,156.24,156.2,22.4063]
[1721254883127,26.4004,156.24,156.2,22.4063]
[1721254883333,20.0,156.24,156.21,45.0]
[1721254883611,20.0,156.25,156.22,1.28000713]
[1721254883831,20.0,156.25,156.22,7.68110713]
[1721254884041,20.0,156.26,156.24,6.4003]
[1721254884345,20.0,156.28,156.25,1.27984758]
[1721254884862,26.3988,156.28,156.23,16.1714]
[1721254885150,20.0,156.28,156.21,45.17]
[1721254885338,6.3998,156.26,156.21,51.4013]
[1721254885522,20.0,156.25,156.21,45.0]
[1721254885838,20.0,156.25,156.21,51.4015]
[1721254886449,20.0,156.25,156.22,1.2799668]
[1721254886617,20.0,156.25,156.2,22.5766]
[1721254886819,20.0,156.3,156.2,22.4066]
[1721254887331,45.0,156.29,156.17,16.4523]
[1721254887537,6.4024,156.2,156.17,16.4523]
[1721254887730,6.4024,156.2,156.16,28.7604]
[1721254887731,20.0,156.19,156.16,28.7604]
[1721254888119,20.0,156.19,156.17,6.4032]
[1721254888316,20.0,156.2,156.17,6.4032]
[1721254888722,26.4022,156.2,156.16,22.3568]
[1721254889039,6.4033,156.17,156.13,39.05]
[1721254889245,6.4028,156.18,156.13,39.05]
[1721254889457,20.0,156.16,156.13,16.0119]
[1721254889654,20.0,156.16,156.09,15.4938]
[1721254889961,6.4045,156.14,156.08,6.5255]
[1721254890114,6.4032,156.18,156.12,6.4053]
[1721254890319,20.0,156.17,156.13,6.4047]
[1721254890943,20.0,156.17,156.15,6.404]
[1721254891145,20.0,156.23,156.15,6.404]
[1721254891459,6.4024,156.2,156.15,6.404]
[1721254891759,20.0,156.19,156.13,22.4159]
[1721254892426,20.0,156.23,156.13,16.0113]
[1721254892731,20.0,156.23,156.14,45.17]
[1721254893248,20.0,156.23,156.13,16.0113]
[1721254894342,6.4032,156.18,156.13,22.4161]
[1721254894643,20.0,156.17,156.14,1.28069584]
[1721254894848,20.0,156.23,156.16,6.4035]
[1721254895846,6.4016,156.21,156.16,6.4035]
[1721254896049,26.402,156.2,156.15,23.69402199]
[1721254896346,20.0,156.19,156.15,22.4135]
[1721254896726,20.0,156.19,156.16,6.4033]
[1721254897131,20.0,156.23,156.16,6.4033]
[1721254897319,6.4019,156.21,156.16,6.4033]
[1721254897547,6.4019,156.21,156.17,6.4032]
[1721254897748,20.0,156.2,156.16,7.68403257]
[1721254897952,20.0,156.2,156.16,6.4036]
[1721254898133,15.9982,156.27,156.17,17.28793442]
[1721254898471,6.4005,156.24,156.19,6.4023]
[1721254898744,15.9982,156.27,156.17,22.4104]
[1721254898962,6.4008,156.23,156.18,6.4026]
[1721254899159,6.4013,156.22,156.18,6.4026]
[1721254899326,6.68478366,156.29,156.26,6.3995]
[1721254899526,6.6608,156.35,156.25,6.3999]
[1721254899823,6.398,156.3,156.25,6.3999]
[1721254900148,6.398,156.3,156.26,6.3995]
[1721254900647,6.398,156.3,156.23,16.0017]
[1721254900648,6.398,156.3,156.25,6.3999]
[1721254901352,6.399,156.28,156.23,6.4007]
[1721254901660,15.9947,156.31,156.21,1.27987835]
[1721254902143,6.3999,156.26,156.21,6.4014]
[1721254902842,22.6514,156.35,156.24,6.4003]
[1721254903049,6.3982,156.3,156.25,6.3996]
[1721254903244,20.0,156.29,156.26,1.27976837]
[1721254903430,26.3984,156.29,156.26,1.27976837]
[1721254904351,20.0,156.29,156.27,1.27976885]
[1721254904533,20.0,156.34,156.27,7.67886885]
[1721254905335,20.0,156.34,156.28,6.3987]
[1721254905535,20.0,156.34,156.27,7.67886885]
[1721254906728,20.0,156.34,156.25,15.9992]
[1721254907261,6.3987,156.29,156.25,15.9992]
[1721254907638,6.3988,156.28,156.24,27.7499]
[1721254907935,6.3983,156.29,156.24,27.7499]
[1721254908533,6.3988,156.28,156.24,21.3499]
[1721254908849,15.9947,156.31,156.22,16.0027]
[1721254909055,6.3997,156.26,156.22,16.0027]
[1721254909269,6.4,156.25,156.21,7.68129857]
[1721254909436,15.9947,156.31,156.21,7.68129857]
[1721254909635,6.4004,156.24,156.2,28.9814]
[1721254909953,6.3982,156.3,156.25,6.3999]
[1721254910251,20.0,156.29,156.25,6.3999]
[1721254910451,20.0,156.29,156.26,6.3995]
[1721254910667,20.0,156.29,156.25,6.3999]
[1721254910844,26.3985,156.29,156.25,6.3999]
[1721254912137,6.3996,156.26,156.21,23.68503244]
[1721254912336,20.0,156.25,156.21,23.68503244]
[1721254912532,20.0,156.25,156.2,22.5795]
[1721254912750,6.4011,156.23,156.18,22.4094]
[1721254912971,6.4025,156.19,156.16,6.4708]
[1721254913141,16.0007,156.25,156.16,7.75138051]
[1721254913336,20.0,156.24,156.16,7.75138051]
[1721254913543,20.0,156.24,156.16,6.4708]
[1721254913765,6.4012,156.22,156.18,6.4028]
[1721254913966,20.0,156.21,156.19,6.4021]
[1721254914334,6.4008,156.23,156.18,23.68971702]
[1721254914647,26.4014,156.22,156.18,17.28691702]
[1721254914961,26.4016,156.21,156.17,6.4031]
[1721254915171,6.4016,156.21,156.17,6.4031]
[1721254915373,20.0,156.2,156.17,7.68348642]
[1721254915833,20.0,156.2,156.15,32.0182]
[1721254916029,20.0,156.28,156.15,32.0182]
[1721254916236,45.0,156.27,156.15,32.0182]
[1721254916471,20.0,156.26,156.15,32.0182]
[1721254916651,6.4036,156.17,156.15,16.0083]
[1721254916954,6.4018,156.21,156.16,6.4036]
[1721254917159,6.4021,156.2,156.16,6.4036]
[1721254917373,20.0,156.19,156.16,6.4036]
[1721254917539,20.0,156.19,156.15,22.4123]
[1721254917939,20.0,156.19,156.16,1.28067949]
[1721254918144,20.0,156.26,156.16,1.28067949]
[1721254918347,20.0,156.26,156.17,6.4032]
[1721254918348,6.4012,156.22,156.17,6.4032]
[1721254918545,20.0,156.21,156.18,1.28040144]
[1721254919460,20.0,156.21,156.18,6.4027]
[1721254919636,20.0,156.21,156.17,6.4032]
[1721254919840,6.68661102,156.26,156.2,6.402]
[1721254920137,6.4,156.25,156.21,1.28027578]
[1721254920358,6.4004,156.24,156.2,1.28017017]
[1721254920758,6.4004,156.24,156.21,1.28022976]
[1721254920943,6.4004,156.24,156.2,1.28019613]
[1721254921262,6.4004,156.24,156.2,1.28019988]
[1721254921647,20.0,156.23,156.18,16.007]
[1721254921843,20.0,156.26,156.15,38.4221]
[1721254922048,6.4016,156.21,156.16,51.4036]
[1721254922252,20.0,156.2,156.16,51.4036]
[1721254922451,20.0,156.2,156.17,6.4032]
[1721254922652,20.0,156.2,156.18,1.28039979]
[1721254922864,20.0,156.21,156.18,1.28039979]
[1721254923364,26.4017,156.21,156.18,1.28039979]
[1721254923540,6.402,156.2,156.15,38.4222]
[1721254923740,20.0,156.19,156.15,38.4222]
[1721254924664,6.4029,156.18,156.15,16.0083]
[1721254925171,26.4024,156.19,156.15,16.0083]
[1721254925487,20.0,156.19,156.15,22.4122]
[1721254925768,20.0,156.19,156.15,23.69287302]
[1721254925983,20.0,156.19,156.12,6.3111]
[1721254926145,20.0,156.22,156.13,1.28066989]
[1721254926577,6.4028,156.19,156.14,6.4043]
[1721254926750,20.0,156.18,156.13,6.4048]
[1721254927070,26.4029,156.18,156.13,6.4048]
[1721254927251,6.4033,156.17,156.13,6.4048]
[1721254927451,6.4033,156.17,156.12,13.99704009]
[1721254927842,6.4033,156.17,156.13,6.4048]
[1721254928069,26.4029,156.18,156.13,6.4048]
[1721254928267,20.0,156.18,156.14,7.68493777]
[1721254928938,20.0,156.18,156.13,16.0117]
[1721254929144,20.0,156.22,156.13,16.0117]
[1721254930161,6.4035,156.17,156.13,17.29246445]
[1721254930362,20.0,156.16,156.13,17.29246445]
[1721254930549,37.8866,156.21,156.11,21.9291]
[1721254930750,6.4041,156.15,156.11,15.5238]
[1721254930964,6.4036,156.17,156.11,21.9294]
[1721254931268,26.4039,156.16,156.11,21.9294]
[1721254931845,20.0,156.16,156.11,15.5238]
[1721254932050,20.0,156.16,156.11,21.9294]
[1721254932251,6.4038,156.16,156.12,6.4052]
[1721254932447,20.0,156.15,156.13,16.012]
[1721254932668,20.0,156.15,156.14,6.4045]
[1721254932851,20.0,156.15,156.13,22.4168]
[1721254933051,6.4042,156.15,156.11,15.5238]
[1721254933261,6.4037,156.16,156.11,21.9292]
[1721254933589,20.0,156.15,156.13,22.417]
[1721254933790,6.4037,156.16,156.11,15.5238]
[1721254934075,20.0,156.15,156.11,21.9294]
[1721254934854,20.0,156.15,156.13,6.4048]
[1721254935055,20.0,156.15,156.14,6.4045]
[1721254935268,6.4016,156.22,156.17,6.4032]
[1721254935465,26.4019,156.21,156.16,6.4036]
[1721254935877,6.4021,156.2,156.16,6.4036]
[1721254936179,20.0,156.19,156.15,22.4135]
[1721254936375,6.68099877,156.25,156.15,22.5043]
[1721254936580,18.00876961,156.28,156.16,46.28037614]
[1721254936767,24.68882073,156.28,156.16,46.28037614]
[1721254936970,6.4023,156.2,156.15,28.9082]
[1721254937182,6.4025,156.19,156.15,28.9082]
[1721254937683,16.0016,156.24,156.15,6.4947]
[1721254937895,6.4033,156.17,156.12,22.4178]
[1721254938380,20.0,156.16,156.15,16.0102]
[1721254938564,20.0,156.16,156.12,16.0129]
[1721254938764,20.0,156.22,156.12,22.4181]
[1721254938979,45.0,156.21,156.12,22.4181]
[1721254939283,20.0,156.2,156.12,22.4181]
[1721254939663,6.4025,156.19,156.14,6.4041]
[1721254939862,20.0,156.18,156.16,6.4036]
[1721254940076,6.4011,156.23,156.11,76.7719]
[1721254940275,6.4011,156.23,156.18,6.4024]
[1721254940478,8.69152073,156.28,156.19,6.4021]
[1721254940788,6.4008,156.23,156.18,22.4092]
[1721254940974,6.4012,156.22,156.18,16.0065]
[1721254941174,6.402,156.21,156.16,6.4033]
[1721254941781,20.0,156.2,156.16,6.4033]
[1721254942091,20.0,156.2,156.15,16.0099]
[1721254942092,26.402,156.2,156.15,22.4138]
[1721254942469,20.0,156.2,156.15,16.0099]
[1721254942681,6.4015,156.22,156.17,6.4031]
[1721254942873,20.0,156.21,156.15,16.0099]
[1721254943080,20.0,156.21,156.12,45.34]
[1721254943081,20.0,156.21,156.12,16.0129]
[1721254943388,8.69152073,156.28,156.11,15.5238]
[1721254943389,16.0037,156.22,156.11,15.5238]
[1721254943572,6.4041,156.15,156.11,15.5238]
[1721254943891,16.0058,156.2,156.11,15.5238]
[1721254944081,16.0079,156.18,156.07,16.573]
[1721254944267,6.4049,156.13,156.08,6.4068]
[1721254944472,6.4045,156.14,156.09,6.4064]
[1721254944772,20.0,156.13,156.09,6.4064]
[1721254944984,26.4049,156.13,156.09,6.4064]
[1721254945689,26.4049,156.13,156.08,6.4068]
[1721254946017,6.4058,156.11,156.06,16.019]
[1721254946205,20.0,156.1,156.04,6.4085]
[1721254946500,6.4066,156.09,156.04,6.4085]
[1721254946689,20.0,156.08,156.04,6.4085]
[1721254947009,26.407,156.08,156.03,22.4311]
[1721254947173,6.4074,156.07,156.03,16.0222]
[1721254947371,26.4078,156.06,156.01,6.4097]
[1721254947572,20.0,156.08,156.0,16.0255]
[1721254947893,6.4077,156.07,156.01,6.4097]
[1721254948073,20.0,156.06,156.01,6.4097]
[1721254949103,20.0,156.06,155.99,47.5091]
[1721254949104,20.0,156.06,156.03,16.0224]
[1721254949385,26.4057,156.11,156.06,6.4077]
[1721254949766,6.4061,156.1,156.05,6.4081]
[1721254949973,6.4056,156.12,156.05,16.0195]